{"text_format":"3","workbook":"xlsx","n_sheets":1,"sheets":["Budget mensuel du ménage"],"not_rendered":{"defined_names":1},"read":"whole","date_system":"1900"}

{"sheet":"Budget mensuel du ménage","index":0,"n_rows":68,"n_cols":9,"rows_kept":68,"merged":[[0,0,0,6],[2,0,2,1],[2,5,2,6],[8,5,8,6],[18,0,18,3],[27,5,27,8],[29,0,29,3],[36,0,36,3],[37,5,37,8],[42,0,42,3],[44,5,44,8],[54,0,54,3],[54,5,54,8],[61,0,61,3],[62,5,62,8]]}
["Budget mensuel du ménage"]
[]
["Coût total prévu",null,"Coût total réel","Différence totale",null,"Salaire mensuel prévu"]
[null,{"$f":"Housing[[#Totals],[Coût prévu]]+Transportation[[#Totals],[Coût prévu]]+Insurance[[#Totals],[Coût prévu]]+Food[[#Totals],[Coût prévu]]+Children[[#Totals],[Coût prévu]]+Legal[[#Totals],[Coût prévu]]+Savings[[#Totals],[Coût prévu]]+Loans[[#Totals],[Coût prévu]]+Entertainment[[#Totals],[Coût prévu]]+Taxes[[#Totals],[Coût prévu]]+PersonalCare[[#Totals],[Coût prévu]]+Pets[[#Totals],[Coût prévu]]+Gifts[[#Totals],[Coût prévu]]","v":{"v":1203,"d":"1,203 €"}},{"$f":"Housing[[#Totals],[Coût réel]]+Transportation[[#Totals],[Coût réel]]+Insurance[[#Totals],[Coût réel]]+Food[[#Totals],[Coût réel]]+Children[[#Totals],[Coût réel]]+Legal[[#Totals],[Coût réel]]+Savings[[#Totals],[Coût réel]]+Loans[[#Totals],[Coût réel]]+Entertainment[[#Totals],[Coût réel]]+Taxes[[#Totals],[Coût réel]]+PersonalCare[[#Totals],[Coût réel]]+Pets[[#Totals],[Coût réel]]+Gifts[[#Totals],[Coût réel]]","v":{"v":1317,"d":"1,317 €"}},{"$f":"Housing[[#Totals],[Différence]]+Transportation[[#Totals],[Différence]]+Insurance[[#Totals],[Différence]]+Food[[#Totals],[Différence]]+Children[[#Totals],[Différence]]+Legal[[#Totals],[Différence]]+Savings[[#Totals],[Différence]]+Loans[[#Totals],[Différence]]+Entertainment[[#Totals],[Différence]]+Taxes[[#Totals],[Différence]]+PersonalCare[[#Totals],[Différence]]+Pets[[#Totals],[Différence]]+Gifts[[#Totals],[Différence]]","v":{"v":-114,"d":"-114 €"}},null,"Salaire 1",{"v":4000,"d":"4,000 €"}]
[{"$nulls":5},"Salaire 2",{"v":1200,"d":"1,200 €"}]
["Habitation","Coût prévu","Coût réel","Différence",null,"Revenu supplémentaire",{"v":300,"d":"300 €"}]
["Emprunt ou loyer",{"v":1000,"d":"1,000 €"},{"v":1000,"d":"1,000 €"},{"$f":"Housing[Coût prévu]-Housing[Coût réel]","v":{"v":0,"d":"0 €"}},null,"Revenu mensuel total",{"$f":"SUM(G4:G6)","v":{"v":5500,"d":"5,500 €"}}]
["2nd emprunt ou loyer",{"v":0,"d":"0 €"},{"v":0,"d":"0 €"},{"$f":"Housing[Coût prévu]-Housing[Coût réel]","v":{"v":0,"d":"0 €"}}]
["Téléphone",{"v":62,"d":"62 €"},{"v":100,"d":"100 €"},{"$f":"Housing[Coût prévu]-Housing[Coût réel]","v":{"v":-38,"d":"-38 €"}},null,"Revenu mensuel réel"]
["Électricité",{"v":44,"d":"44 €"},{"v":125,"d":"125 €"},{"$f":"Housing[Coût prévu]-Housing[Coût réel]","v":{"v":-81,"d":"-81 €"}},null,"Salaire 1",{"v":4000,"d":"4,000 €"}]
["Gaz",{"v":22,"d":"22 €"},{"v":35,"d":"35 €"},{"$f":"Housing[Coût prévu]-Housing[Coût réel]","v":{"v":-13,"d":"-13 €"}},null,"Salaire 2",{"v":1200,"d":"1,200 €"}]
["Eau",{"v":8,"d":"8 €"},{"v":8,"d":"8 €"},{"$f":"Housing[Coût prévu]-Housing[Coût réel]","v":{"v":0,"d":"0 €"}},null,"Revenu supplémentaire",{"v":300,"d":"300 €"}]
["Câble",{"v":34,"d":"34 €"},{"v":39,"d":"39 €"},{"$f":"Housing[Coût prévu]-Housing[Coût réel]","v":{"v":-5,"d":"-5 €"}},null,"Revenu mensuel total",{"$f":"SUM(G10:G12)","v":{"v":5500,"d":"5,500 €"}}]
["Ordures ménagères",{"v":10,"d":"10 €"},{"v":10,"d":"10 €"},{"$f":"Housing[Coût prévu]-Housing[Coût réel]","v":{"v":0,"d":"0 €"}}]
["Entretien/réparations",{"v":23,"d":"23 €"},{"v":0,"d":"0 €"},{"$f":"Housing[Coût prévu]-Housing[Coût réel]","v":{"v":23,"d":"23 €"}},null,"Solde prévisionnel\n",{"$f":"SUM(G7-B4)","v":{"v":4297,"d":"4,297 €"}}]
["Fournitures",{"v":0,"d":"0 €"},{"v":0,"d":"0 €"},{"$f":"Housing[Coût prévu]-Housing[Coût réel]","v":{"v":0,"d":"0 €"}},null,"Solde réel",{"$f":"SUM(G13-C4)","v":{"v":4183,"d":"4,183 €"}}]
["Autre",{"v":0,"d":"0 €"},{"v":0,"d":"0 €"},{"$f":"Housing[Coût prévu]-Housing[Coût réel]","v":{"v":0,"d":"0 €"}},null,"Différence",{"$f":"SUM(G16-G15)","v":{"v":-114,"d":"-114 €"}}]
["Total",{"$f":"SUBTOTAL(109,Housing[Coût prévu])","v":{"v":1203,"d":"1,203 €"}},{"$f":"SUBTOTAL(109,Housing[Coût réel])","v":{"v":1317,"d":"1,317 €"}},{"$f":"SUBTOTAL(109,Housing[Différence])","v":{"v":-114,"d":"-114 €"}}]
[]
["Transport","Coût prévu","Coût réel","Différence",null,"Prêts","Coût prévu","Coût réel","Différence"]
["Mensualité véhicule 1",null,null,{"$f":"Transportation[Coût prévu]-Transportation[Coût réel]","v":{"v":0,"d":"0 €"}},null,"Personnel",null,null,{"$f":"Loans[Coût prévu]-Loans[Coût réel]","v":{"v":0,"d":"0 €"}}]
["Mensualité véhicule 2",null,null,{"$f":"Transportation[Coût prévu]-Transportation[Coût réel]","v":{"v":0,"d":"0 €"}},null,"Étudiant",null,null,{"$f":"Loans[Coût prévu]-Loans[Coût réel]","v":{"v":0,"d":"0 €"}}]
["Bus/taxi",null,null,{"$f":"Transportation[Coût prévu]-Transportation[Coût réel]","v":{"v":0,"d":"0 €"}},null,"Carte de crédit",null,null,{"$f":"Loans[Coût prévu]-Loans[Coût réel]","v":{"v":0,"d":"0 €"}}]
["Assurance",null,null,{"$f":"Transportation[Coût prévu]-Transportation[Coût réel]","v":{"v":0,"d":"0 €"}},null,"Carte de crédit",null,null,{"$f":"Loans[Coût prévu]-Loans[Coût réel]","v":{"v":0,"d":"0 €"}}]
["Permis",null,null,{"$f":"Transportation[Coût prévu]-Transportation[Coût réel]","v":{"v":0,"d":"0 €"}},null,"Carte de crédit",null,null,{"$f":"Loans[Coût prévu]-Loans[Coût réel]","v":{"v":0,"d":"0 €"}}]
["Essence",null,null,{"$f":"Transportation[Coût prévu]-Transportation[Coût réel]","v":{"v":0,"d":"0 €"}},null,"Autre",null,null,{"$f":"Loans[Coût prévu]-Loans[Coût réel]","v":{"v":0,"d":"0 €"}}]
["Entretien",null,null,{"$f":"Transportation[Coût prévu]-Transportation[Coût réel]","v":{"v":0,"d":"0 €"}},null,"Total",{"$f":"SUBTOTAL(109,Loans[Coût prévu])","v":{"v":0,"d":"0 €"}},{"$f":"SUBTOTAL(109,Loans[Coût réel])","v":{"v":0,"d":"0 €"}},{"$f":"SUBTOTAL(109,Loans[Différence])","v":{"v":0,"d":"0 €"}}]
["Autre",null,null,{"$f":"Transportation[Coût prévu]-Transportation[Coût réel]","v":{"v":0,"d":"0 €"}}]
["Total",{"$f":"SUBTOTAL(109,Transportation[Coût prévu])","v":{"v":0,"d":"0 €"}},{"$f":"SUBTOTAL(109,Transportation[Coût réel])","v":{"v":0,"d":"0 €"}},{"$f":"SUBTOTAL(109,Transportation[Différence])","v":{"v":0,"d":"0 €"}},null,"Divertissement","Coût prévu","Coût réel","Différence"]
[{"$nulls":5},"Vidéo/DVD",null,null,{"$f":"Entertainment[Coût prévu]-Entertainment[Coût réel]","v":{"v":0,"d":"0 €"}}]
["Assurance","Coût prévu","Coût réel","Différence",null,"CD",null,null,{"$f":"Entertainment[Coût prévu]-Entertainment[Coût réel]","v":{"v":0,"d":"0 €"}}]
["Domicile",null,null,{"$f":"Insurance[Coût prévu]-Insurance[Coût réel]","v":{"v":0,"d":"0 €"}},null,"Cinéma",null,null,{"$f":"Entertainment[Coût prévu]-Entertainment[Coût réel]","v":{"v":0,"d":"0 €"}}]
["Santé",null,null,{"$f":"Insurance[Coût prévu]-Insurance[Coût réel]","v":{"v":0,"d":"0 €"}},null,"Concerts",null,null,{"$f":"Entertainment[Coût prévu]-Entertainment[Coût réel]","v":{"v":0,"d":"0 €"}}]
["Vie",null,null,{"$f":"Insurance[Coût prévu]-Insurance[Coût réel]","v":{"v":0,"d":"0 €"}},null,"Sport",null,null,{"$f":"Entertainment[Coût prévu]-Entertainment[Coût réel]","v":{"v":0,"d":"0 €"}}]
["Autre",null,null,{"$f":"Insurance[Coût prévu]-Insurance[Coût réel]","v":{"v":0,"d":"0 €"}},null,"Théâtre",null,null,{"$f":"Entertainment[Coût prévu]-Entertainment[Coût réel]","v":{"v":0,"d":"0 €"}}]
["Total",{"$f":"SUBTOTAL(109,Insurance[Coût prévu])","v":{"v":0,"d":"0 €"}},{"$f":"SUBTOTAL(109,Insurance[Coût réel])","v":{"v":0,"d":"0 €"}},{"$f":"SUBTOTAL(109,Insurance[Différence])","v":{"v":0,"d":"0 €"}},null,"Autre",null,null,{"$f":"Entertainment[Coût prévu]-Entertainment[Coût réel]","v":{"v":0,"d":"0 €"}}]
[{"$nulls":5},"Total",{"$f":"SUBTOTAL(109,Entertainment[Coût prévu])","v":{"v":0,"d":"0 €"}},{"$f":"SUBTOTAL(109,Entertainment[Coût réel])","v":{"v":0,"d":"0 €"}},{"$f":"SUBTOTAL(109,Entertainment[Différence])","v":{"v":0,"d":"0 €"}}]
["Alimentation","Coût prévu","Coût réel","Différence"]
["Courses",null,null,{"$f":"Food[Coût prévu]-Food[Coût réel]","v":{"v":0,"d":"0 €"}},null,"Impôts","Coût prévu","Coût réel","Différence"]
["Restaurants",null,null,{"$f":"Food[Coût prévu]-Food[Coût réel]","v":{"v":0,"d":"0 €"}},null,"Fédéral",null,null,{"$f":"Taxes[Coût prévu]-Taxes[Coût réel]","v":{"v":0,"d":"0 €"}}]
["Autre",null,null,{"$f":"Food[Coût prévu]-Food[Coût réel]","v":{"v":0,"d":"0 €"}},null,"État",null,null,{"$f":"Taxes[Coût prévu]-Taxes[Coût réel]","v":{"v":0,"d":"0 €"}}]
["Total",{"$f":"SUBTOTAL(109,Food[Coût prévu])","v":{"v":0,"d":"0 €"}},{"$f":"SUBTOTAL(109,Food[Coût réel])","v":{"v":0,"d":"0 €"}},{"$f":"SUBTOTAL(109,Food[Différence])","v":{"v":0,"d":"0 €"}},null,"Local",null,null,{"$f":"Taxes[Coût prévu]-Taxes[Coût réel]","v":{"v":0,"d":"0 €"}}]
[{"$nulls":5},"Autre",null,null,{"$f":"Taxes[Coût prévu]-Taxes[Coût réel]","v":{"v":0,"d":"0 €"}}]
["Enfants","Coût prévu","Coût réel","Différence",null,"Total",{"$f":"SUBTOTAL(109,Taxes[Coût prévu])","v":{"v":0,"d":"0 €"}},{"$f":"SUBTOTAL(109,Taxes[Coût réel])","v":{"v":0,"d":"0 €"}},{"$f":"SUBTOTAL(109,Taxes[Différence])","v":{"v":0,"d":"0 €"}}]
["Soins médicaux",null,null,{"$f":"Children[Coût prévu]-Children[Coût réel]","v":{"v":0,"d":"0 €"}}]
["Habillement",null,null,{"$f":"Children[Coût prévu]-Children[Coût réel]","v":{"v":0,"d":"0 €"}},null,"Soins de la personne","Coût prévu","Coût réel","Différence"]
["Frais de scolarité",null,null,{"$f":"Children[Coût prévu]-Children[Coût réel]","v":{"v":0,"d":"0 €"}},null,"Soins médicaux",null,null,{"$f":"PersonalCare[Coût prévu]-PersonalCare[Coût réel]","v":{"v":0,"d":"0 €"}}]
["Fournitures scolaires",null,null,{"$f":"Children[Coût prévu]-Children[Coût réel]","v":{"v":0,"d":"0 €"}},null,"Coiffeur/manucure",null,null,{"$f":"PersonalCare[Coût prévu]-PersonalCare[Coût réel]","v":{"v":0,"d":"0 €"}}]
["Cotisations ou frais d'organisation",null,null,{"$f":"Children[Coût prévu]-Children[Coût réel]","v":{"v":0,"d":"0 €"}},null,"Habillement",null,null,{"$f":"PersonalCare[Coût prévu]-PersonalCare[Coût réel]","v":{"v":0,"d":"0 €"}}]
["Déjeuner",null,null,{"$f":"Children[Coût prévu]-Children[Coût réel]","v":{"v":0,"d":"0 €"}},null,"Pressing",null,null,{"$f":"PersonalCare[Coût prévu]-PersonalCare[Coût réel]","v":{"v":0,"d":"0 €"}}]
["Garderie",null,null,{"$f":"Children[Coût prévu]-Children[Coût réel]","v":{"v":0,"d":"0 €"}},null,"Club de sport",null,null,{"$f":"PersonalCare[Coût prévu]-PersonalCare[Coût réel]","v":{"v":0,"d":"0 €"}}]
["Jouets/jeux",null,null,{"$f":"Children[Coût prévu]-Children[Coût réel]","v":{"v":0,"d":"0 €"}},null,"Commissions/Prélèvements de l'organisation",null,null,{"$f":"PersonalCare[Coût prévu]-PersonalCare[Coût réel]","v":{"v":0,"d":"0 €"}}]
["Autre",null,null,{"$f":"Children[Coût prévu]-Children[Coût réel]","v":{"v":0,"d":"0 €"}},null,"Autre",null,null,{"$f":"PersonalCare[Coût prévu]-PersonalCare[Coût réel]","v":{"v":0,"d":"0 €"}}]
["Total",{"$f":"SUBTOTAL(109,Children[Coût prévu])","v":{"v":0,"d":"0 €"}},{"$f":"SUBTOTAL(109,Children[Coût réel])","v":{"v":0,"d":"0 €"}},{"$f":"SUBTOTAL(109,Children[Différence])","v":{"v":0,"d":"0 €"}},null,"Total",{"$f":"SUBTOTAL(109,PersonalCare[Coût prévu])","v":{"v":0,"d":"0 €"}},{"$f":"SUBTOTAL(109,PersonalCare[Coût réel])","v":{"v":0,"d":"0 €"}},{"$f":"SUBTOTAL(109,PersonalCare[Différence])","v":{"v":0,"d":"0 €"}}]
[]
["Informations légales","Coût prévu","Coût réel","Différence",null,"Animaux","Coût prévu","Coût réel","Différence"]
["Avocat",null,null,{"$f":"Legal[Coût prévu]-Legal[Coût réel]","v":{"v":0,"d":"0 €"}},null,"Alimentation",null,null,{"$f":"Pets[Coût prévu]-Pets[Coût réel]","v":{"v":0,"d":"0 €"}}]
["Pension alimentaire",null,null,{"$f":"Legal[Coût prévu]-Legal[Coût réel]","v":{"v":0,"d":"0 €"}},null,"Soins médicaux",null,null,{"$f":"Pets[Coût prévu]-Pets[Coût réel]","v":{"v":0,"d":"0 €"}}]
["Paiements",null,null,{"$f":"Legal[Coût prévu]-Legal[Coût réel]","v":{"v":0,"d":"0 €"}},null,"Toilettage",null,null,{"$f":"Pets[Coût prévu]-Pets[Coût réel]","v":{"v":0,"d":"0 €"}}]
["Autre",null,null,{"$f":"Legal[Coût prévu]-Legal[Coût réel]","v":{"v":0,"d":"0 €"}},null,"Jouets",null,null,{"$f":"Pets[Coût prévu]-Pets[Coût réel]","v":{"v":0,"d":"0 €"}}]
["Total",{"$f":"SUBTOTAL(109,Legal[Coût prévu])","v":{"v":0,"d":"0 €"}},{"$f":"SUBTOTAL(109,Legal[Coût réel])","v":{"v":0,"d":"0 €"}},{"$f":"SUBTOTAL(109,Legal[Différence])","v":{"v":0,"d":"0 €"}},null,"Autre",null,null,{"$f":"Pets[Coût prévu]-Pets[Coût réel]","v":{"v":0,"d":"0 €"}}]
[{"$nulls":5},"Total",{"$f":"SUBTOTAL(109,Pets[Coût prévu])","v":{"v":0,"d":"0 €"}},{"$f":"SUBTOTAL(109,Pets[Coût réel])","v":{"v":0,"d":"0 €"}},{"$f":"SUBTOTAL(109,Pets[Différence])","v":{"v":0,"d":"0 €"}}]
["Épargne/Investissements","Coût prévu","Coût réel","Différence"]
["Retraite",null,null,{"$f":"Savings[Coût prévu]-Savings[Coût réel]","v":{"v":0,"d":"0 €"}},null,"Cadeaux et dons","Coût prévu","Coût réel","Différence"]
["Investissement",null,null,{"$f":"Savings[Coût prévu]-Savings[Coût réel]","v":{"v":0,"d":"0 €"}},null,"Oeuvre de charité 1",null,null,{"$f":"Gifts[Coût prévu]-Gifts[Coût réel]","v":{"v":0,"d":"0 €"}}]
["Études",null,null,{"$f":"Savings[Coût prévu]-Savings[Coût réel]","v":{"v":0,"d":"0 €"}},null,"Oeuvre de charité 2",null,null,{"$f":"Gifts[Coût prévu]-Gifts[Coût réel]","v":{"v":0,"d":"0 €"}}]
["Autre",null,null,{"$f":"Savings[Coût prévu]-Savings[Coût réel]","v":{"v":0,"d":"0 €"}},null,"Oeuvre de charité 3",null,null,{"$f":"Gifts[Coût prévu]-Gifts[Coût réel]","v":{"v":0,"d":"0 €"}}]
["Total",{"$f":"SUBTOTAL(109,Savings[Coût prévu])","v":{"v":0,"d":"0 €"}},{"$f":"SUBTOTAL(109,Savings[Coût réel])","v":{"v":0,"d":"0 €"}},{"$f":"SUBTOTAL(109,Savings[Différence])","v":{"v":0,"d":"0 €"}},null,"Total",{"$f":"SUBTOTAL(109,Gifts[Coût prévu])","v":{"v":0,"d":"0 €"}},{"$f":"SUBTOTAL(109,Gifts[Coût réel])","v":{"v":0,"d":"0 €"}},{"$f":"SUBTOTAL(109,Gifts[Différence])","v":{"v":0,"d":"0 €"}}]